bitfinex/quotes_SOLUSD_20230905
["timestamp","ask_amount","ask_price","bid_price","bid_amount"]
[1693917815600,7.943,19.638,19.625,20.0]
[1693917815907,25.685,19.632,19.625,20.0]
[1693917816412,589.1,19.641,19.625,7.948]
[1693917817505,7.944,19.638,19.625,7.948]
[1693917818105,55.0,19.637,19.625,7.948]
[1693917818417,20.0,19.636,19.619,25.688]
[1693917818622,8.77263537,19.635,19.624,7.949]
[1693917818914,7.945,19.635,19.624,7.949]
[1693917819619,7.945,19.635,19.621,25.685]
[1693917819620,33.609,19.635,19.621,25.685]
[1693917819812,33.609,19.635,19.622,7.95]
[1693917820001,25.664,19.635,19.622,7.95]
[1693917820198,33.609,19.635,19.622,7.95]
[1693917820401,25.664,19.635,19.622,7.95]
[1693917820601,33.609,19.635,19.622,7.95]
[1693917821008,55.0,19.634,19.622,7.95]
[1693917821214,62.945,19.634,19.622,7.95]
[1693917821400,55.0,19.634,19.622,7.95]
[1693917823200,25.664,19.635,19.622,7.95]
[1693917823607,93.9067,19.638,19.623,20.0]
[1693917823795,93.9067,19.638,19.627,33.626]
[1693917824199,149.9657,19.638,19.627,33.626]
[1693917824398,157.9087,19.638,19.627,7.948]
[1693917825215,101.8497,19.638,19.627,7.948]
[1693917825410,93.9067,19.638,19.627,33.626]
[1693917825616,93.9067,19.638,19.63,52.57]
[1693917825816,93.9067,19.638,19.632,89.646]
[1693917826316,101.369,19.646,19.633,20.0]
[1693917826512,95.2128,19.645,19.636,7.944]
[1693917826904,103.1538,19.645,19.628,56.04]
[1693917827107,128.8218,19.645,19.633,7.945]
[1693917827309,25.668,19.645,19.633,33.616]
[1693917827511,150.2128,19.644,19.633,33.616]
[1693917827925,589.1,19.651,19.633,33.616]
[1693917828223,95.2128,19.65,19.633,33.616]
[1693917828405,95.2128,19.65,19.634,20.0]
[1693917828599,95.2128,19.65,19.638,7.943]
[1693917830225,103.1518,19.65,19.635,7.944]
[1693917830606,7.939,19.648,19.635,7.944]
[1693917830810,55.0,19.647,19.635,7.944]
[1693917832324,55.0,19.647,19.634,20.0]
[1693917832504,55.0,19.647,19.631,20.0]
[1693917832706,55.0,19.647,19.63,20.0]
[1693917832905,55.0,19.647,19.635,7.944]
[1693917835105,55.0,19.648,19.635,7.944]
[1693917835314,62.939,19.648,19.635,7.944]
[1693917835505,55.0,19.648,19.635,7.944]
[1693917835707,55.0,19.649,19.635,7.944]
[1693917837422,7.939,19.648,19.635,7.944]
[1693917837713,55.0,19.647,19.635,7.944]
[1693917837921,55.0,19.649,19.635,7.944]
[1693917839916,62.939,19.649,19.635,7.944]
[1693917843525,62.939,19.649,19.631,25.673]
[1693917843831,62.939,19.649,19.625,101.398]
[1693917843832,46.57861347,19.648,19.627,25.678]
[1693917844125,7.942,19.643,19.631,7.946]
[1693917844525,55.0,19.642,19.631,7.946]
[1693917844828,7.942,19.641,19.629,7.947]
[1693917845011,55.0,19.64,19.629,7.947]
[1693917845611,154.3362,19.641,19.629,7.947]
[1693917845818,99.3362,19.641,19.63,20.0]
[1693917846015,99.3362,19.641,19.633,89.642]
[1693917846530,99.3362,19.641,19.634,20.0]
[1693917847021,99.3362,19.641,19.633,7.945]
[1693917847223,99.3362,19.641,19.634,20.0]
[1693917847423,99.3362,19.641,19.635,7.944]
[1693917847614,81.722,19.648,19.629,25.675]
[1693917847820,7.941,19.645,19.632,7.945]
[1693917848027,55.0,19.644,19.632,7.945]
[1693917848227,55.0,19.644,19.632,63.975]
[1693917848429,111.047,19.645,19.632,63.975]
[1693917848620,111.047,19.645,19.632,7.945]
[1693917849439,111.047,19.645,19.632,63.975]
[1693917849742,111.047,19.645,19.632,7.945]
[1693917852935,56.047,19.645,19.632,7.945]
[1693917853933,92.5223,19.646,19.632,7.945]
[1693917854133,92.5223,19.646,19.633,20.0]
[1693917854343,92.5223,19.646,19.636,89.626]
[1693917855431,92.5223,19.646,19.636,7.944]
[1693917855645,92.5223,19.646,19.632,25.671]
[1693917855824,92.5223,19.646,19.636,7.944]
[1693917856723,55.0,19.645,19.636,7.944]
[1693917858347,62.94,19.645,19.635,7.944]
[1693917858540,62.94,19.645,19.633,27.945]
[1693917859836,55.0,19.645,19.633,27.945]
[1693917860743,55.0,19.645,19.633,7.945]
[1693917860935,62.941,19.645,19.631,7.946]
[1693917861244,62.941,19.645,19.628,25.677]
[1693917861539,55.0,19.645,19.632,7.946]
[1693917862632,7.941,19.644,19.632,7.946]
[1693917862837,62.941,19.643,19.632,7.946]
[1693917863034,55.0,19.643,19.632,7.946]
[1693917863238,62.941,19.644,19.632,7.946]
[1693917863948,174.2263,19.646,19.633,44.21323294]
[1693917864132,174.2263,19.646,19.636,33.609]
[1693917864942,174.2263,19.646,19.633,44.21323294]
[1693917864943,182.1663,19.646,19.633,44.21323294]
[1693917865325,55.0,19.645,19.636,7.944]
[1693917865532,62.941,19.645,19.636,7.944]
[1693917865739,62.941,19.645,19.63,52.57]
[1693917867141,174.2263,19.646,19.633,7.945]
[1693917868342,55.0,19.645,19.633,7.945]
[1693917870051,174.2263,19.646,19.633,7.945]
[1693917870642,92.5223,19.646,19.633,7.945]
[1693917872152,55.0,19.645,19.631,7.946]
[1693917872532,62.941,19.645,19.631,7.946]
[1693917873239,55.0,19.645,19.631,7.946]
[1693917873440,136.715,19.645,19.631,7.946]
[1693917874150,144.656,19.645,19.631,7.946]
[1693917878451,136.715,19.645,19.631,7.946]
[1693917878747,26.60195375,19.656,19.632,279.15519214]
[1693917878935,97.4317,19.657,19.639,190.942]
[1693917879142,55.943,19.663,19.639,190.942]
[1693917879143,7.934,19.662,19.64,216.21490407]
[1693917879342,7.933,19.664,19.65,31.52]
[1693917879539,211.571207,19.666,19.653,7.937]
[1693917880049,211.571207,19.666,19.65,31.52]
[1693917880247,203.639207,19.666,19.652,7.937]
[1693917880437,203.639207,19.666,19.652,33.583]
[1693917880633,211.571207,19.666,19.652,7.937]
[1693917881249,55.0,19.665,19.651,7.938]
[1693917881447,7.934,19.661,19.64,31.52]
[1693917881656,7.934,19.661,19.641,21.64102173]
[1693917881851,55.0,19.66,19.641,21.64102173]
[1693917882165,7.936,19.657,19.647,7.94]
[1693917882344,55.0,19.656,19.647,7.94]
[1693917882740,62.936,19.656,19.642,25.658]
[1693917882944,62.936,19.656,19.646,7.94]
[1693917884044,55.0,19.656,19.646,7.94]
[1693917884356,55.0,19.657,19.646,7.94]
[1693917884553,62.936,19.657,19.646,7.94]
[1693917884747,93.1692,19.656,19.646,7.94]
[1693917884947,55.0,19.655,19.646,7.94]
[1693917885242,55.0,19.66,19.646,7.94]
[1693917885449,93.1692,19.662,19.646,33.49539741]
[1693917885957,101.1032,19.662,19.651,7.938]
[1693917886543,126.7522,19.662,19.651,7.938]
[1693917886961,93.1692,19.662,19.652,1.47707485]
[1693917887259,93.1692,19.662,19.655,7.936]
[1693917887655,71.847,19.664,19.655,7.936]
[1693917887850,7.933,19.664,19.655,7.936]
[1693917888452,33.575,19.664,19.655,7.936]
[1693917889544,55.0,19.663,19.655,7.936]
[1693917890546,25.642,19.664,19.655,7.936]
[1693917890748,92.1699,19.668,19.655,7.936]
[1693917891057,7.933,19.665,19.655,7.936]
[1693917891446,60.403,19.665,19.655,7.936]
[1693917891852,60.403,19.665,19.654,7.937]
[1693917892057,55.0,19.664,19.652,7.937]
[1693917892261,7.934,19.661,19.652,7.937]
[1693917892457,55.0,19.66,19.652,7.937]
[1693917892661,62.935,19.66,19.652,7.937]
[1693917893159,55.0,19.66,19.652,7.937]
[1693917893545,55.0,19.661,19.652,7.937]
[1693917893750,62.934,19.661,19.652,7.937]
[1693917894477,62.934,19.661,19.64,104.94]
[1693917894670,62.934,19.661,19.649,7.939]
[1693917895764,99.3551,19.66,19.649,7.939]
[1693917895966,55.0,19.659,19.649,7.939]
[1693917896165,62.935,19.659,19.649,7.939]
[1693917897673,118.928,19.659,19.649,7.939]
[1693917898369,110.993,19.659,19.649,7.939]
[1693917899869,118.928,19.659,19.649,7.939]
[1693917900566,110.993,19.659,19.649,7.939]
[1693917903764,55.993,19.659,19.649,7.939]
[1693917904070,99.3551,19.66,19.649,7.939]
[1693917904473,55.0,19.659,19.649,7.939]
[1693917904676,99.3551,19.66,19.649,7.939]
[1693917904867,95.957,19.662,19.649,7.939]
[1693917905266,55.0,19.661,19.649,7.939]
[1693917905769,97.8354,19.66,19.649,7.939]
[1693917906979,97.8354,19.66,19.65,1.45448122]
[1693917907175,97.8354,19.66,19.653,7.937]
[1693917908268,97.8354,19.66,19.653,33.581]
[1693917909570,55.0,19.661,19.649,25.649]
[1693917909769,25.629,19.665,19.653,7.937]
[1693917909987,7.934,19.662,19.653,7.937]
[1693917910285,7.933,19.664,19.653,7.937]
[1693917910693,78.118,19.662,19.653,33.581]
[1693917910985,7.933,19.663,19.653,7.937]
[1693917911486,7.933,19.665,19.653,33.581]
[1693917911785,63.862,19.665,19.653,33.581]
[1693917911988,63.862,19.665,19.653,89.552]
[1693917911989,55.929,19.665,19.653,89.552]
[1693917912170,95.6028,19.67,19.654,1.49418388]
[1693917912479,103.5338,19.67,19.658,89.528]
[1693917912689,199.1366,19.67,19.658,33.572]
[1693917912868,191.2056,19.67,19.658,33.572]
[1693917913183,95.6028,19.67,19.663,7.933]
[1693917913687,52.47,19.672,19.663,7.933]
[1693917913991,95.3521,19.679,19.663,63.875]
[1693917914287,7.928,19.678,19.663,63.875]
[1693917914492,95.3521,19.679,19.663,63.875]
[1693917915286,7.928,19.677,19.663,63.875]
[1693917917490,7.928,19.677,19.663,7.933]
[1693917917691,55.0,19.676,19.663,7.933]
[1693917918072,62.928,19.676,19.663,7.933]
[1693917918387,62.928,19.676,19.663,63.875]
[1693917919090,62.928,19.676,19.663,7.933]
[1693917920498,62.928,19.676,19.661,7.934]
[1693917920673,25.55539741,19.675,19.657,25.638]
[1693917920880,7.93,19.671,19.662,7.933]
[1693917921189,55.0,19.67,19.662,7.933]
[1693917921586,62.93,19.67,19.662,7.933]
[1693917921781,118.891,19.67,19.66,7.934]
[1693917922274,174.813,19.67,19.656,7.936]
[1693917924091,90.3667,19.669,19.656,7.936]
[1693917924286,7.932,19.666,19.656,7.936]
[1693917924600,55.0,19.665,19.656,7.936]
[1693917925081,90.3667,19.669,19.657,1.48157601]
[1693917925287,90.3667,19.669,19.66,33.569]
[1693917925875,7.928,19.677,19.667,7.932]
[1693917926283,20.0,19.676,19.664,7.932]
[1693917926592,20.0,19.676,19.66,25.634]
[1693917926593,7.929,19.673,19.662,7.933]
[1693917927480,62.93,19.672,19.662,7.933]
[1693917927880,90.2635,19.671,19.662,7.933]
[1693917928280,62.93,19.672,19.662,7.933]
[1693917928786,55.0,19.672,19.662,7.933]
[1693917928987,55.0,19.673,19.662,7.933]
[1693917929192,62.929,19.673,19.662,7.933]
[1693917929688,118.884,19.673,19.662,7.933]
[1693917930185,118.884,19.673,19.66,7.934]
[1693917930377,118.884,19.673,19.661,7.934]
[1693917932396,144.43939741,19.673,19.661,7.934]
[1693917934090,63.884,19.673,19.661,7.934]
[1693917935394,55.0,19.672,19.651,101.264]
[1693917935598,7.932,19.666,19.652,22.82355824]
[1693917936096,55.0,19.665,19.654,7.937]
[1693917936301,55.0,19.665,19.655,2.82355824]
[1693917936481,55.0,19.665,19.658,7.935]
[1693917936975,7.931,19.669,19.658,7.935]
[1693917937880,60.127997,19.669,19.652,45.646]
[1693917938080,60.127997,19.669,19.658,7.935]
[1693917938081,55.0,19.668,19.658,7.935]
[1693917938378,7.932,19.667,19.658,7.935]
[1693917938984,55.0,19.666,19.658,7.935]
[1693917939293,62.932,19.666,19.658,7.935]
[1693917940481,55.0,19.666,19.658,7.935]
[1693917940681,55.0,19.667,19.658,7.935]
[1693917940994,62.932,19.667,19.656,7.936]
[1693917941497,62.932,19.667,19.653,25.643]
[1693917941797,7.933,19.664,19.656,7.936]
[1693917942002,55.0,19.663,19.654,7.936]
[1693917942181,62.933,19.663,19.654,7.936]
[1693917942379,62.933,19.663,19.649,25.649]
[1693917942599,62.933,19.663,19.652,7.937]
[1693917942780,125.866,19.663,19.652,7.937]
[1693917944480,181.808,19.663,19.65,31.46]
[1693917944681,181.808,19.663,19.645,1.92685527]
[1693917945102,125.866,19.663,19.645,1.92685527]
[1693917945292,125.866,19.663,19.647,25.652]
[1693917945485,151.42139741,19.663,19.648,7.939]
[1693917945683,151.42139741,19.663,19.646,7.94]
[1693917946292,25.55539741,19.662,19.646,7.94]
[1693917946489,7.936,19.658,19.644,7.941]
[1693917946703,75.0,19.657,19.644,7.941]
[1693917946911,7.937,19.654,19.644,7.941]
[1693917947090,55.0,19.653,19.644,7.941]
[1693917947601,62.937,19.653,19.644,7.941]
[1693917947799,137.937,19.653,19.644,7.941]
[1693917948109,137.937,19.653,19.642,7.941]
[1693917948291,97.507,19.652,19.642,7.941]
[1693917948611,55.0,19.651,19.642,7.941]
[1693917950292,62.938,19.651,19.641,7.942]
[1693917950487,62.938,19.651,19.64,7.942]
[1693917950690,62.938,19.651,19.636,1.61795089]
[1693917951289,62.938,19.651,19.635,25.667]
[1693917951495,62.938,19.651,19.636,1.66804004]
[1693917952106,62.938,19.651,19.639,7.943]
[1693917952714,75.0,19.653,19.64,31.46]
[1693917953010,81.32371581,19.658,19.643,7.941]
[1693917953011,26.59132693,19.658,19.643,7.941]
[1693917953199,34.52732693,19.658,19.644,1.93837635]
[1693917953397,99.3277,19.657,19.644,1.93837635]
[1693917953593,107.2637,19.657,19.645,7.94]
[1693917953899,180.9857,19.657,19.645,7.94]
[1693917954099,214.5607,19.657,19.645,7.94]
[1693917954305,214.5607,19.657,19.641,1.59882818]
[1693917954515,214.5607,19.657,19.641,21.59882818]
[1693917954904,180.9857,19.657,19.644,33.597]
[1693917955105,55.0,19.656,19.644,33.597]
[1693917957211,180.9857,19.657,19.648,7.939]
[1693917958009,188.9217,19.657,19.648,7.939]
[1693917958409,55.0,19.656,19.648,7.939]
[1693917960414,55.0,19.656,19.644,25.656]
[1693917960724,62.936,19.656,19.644,7.941]
[1693917962499,62.936,19.656,19.642,7.941]
[1693917963117,62.936,19.656,19.636,56.05617025]
[1693917963317,118.898,19.656,19.638,7.943]
[1693917963819,118.898,19.656,19.639,1.5746732]
[1693917964005,118.898,19.656,19.637,7.944]
[1693917964211,118.898,19.656,19.632,1.53099522]
[1693917964412,118.898,19.656,19.637,7.944]
[1693917964918,118.898,19.656,19.638,1.6700556]
[1693917965124,118.898,19.656,19.639,7.943]
[1693917965925,118.898,19.656,19.638,7.943]
[1693917966223,118.898,19.656,19.637,7.944]
[1693917966811,118.898,19.656,19.638,1.61797578]
[1693917967220,159.74117718,19.656,19.638,1.61797578]
[1693917967415,26.60203548,19.655,19.638,1.61797578]
[1693917967614,33.588,19.65,19.637,7.944]
[1693917968016,7.94,19.647,19.637,7.944]
[1693917968223,55.0,19.646,19.637,7.944]
[1693917968613,62.94,19.646,19.633,2.316827]
[1693917968811,62.94,19.646,19.636,7.944]
[1693917970522,55.0,19.646,19.636,7.944]
[1693917971722,80.671,19.646,19.636,7.944]
[1693917972415,88.611,19.646,19.636,7.944]
[1693917974029,88.611,19.646,19.633,25.671]
[1693917974329,88.611,19.646,19.635,7.944]
[1693917974713,88.611,19.646,19.626,25.55539741]
[1693917974916,114.16639741,19.646,19.63,7.946]
[1693917976225,114.16639741,19.646,19.629,7.947]
[1693917976425,25.55539741,19.645,19.627,7.947]
[1693917976631,33.605,19.64,19.628,1.59409138]
[1693917976928,33.605,19.64,19.627,7.947]
[1693917976929,55.0,19.639,19.627,1.65092548]
[1693917977118,7.944,19.636,19.627,9.59892548]
[1693917977317,62.945,19.635,19.627,7.948]
[1693917978018,119.003,19.635,19.627,7.948]
[1693917978220,119.003,19.635,19.624,25.681]
[1693917979129,119.003,19.635,19.626,7.948]
[1693917979330,119.003,19.635,19.62,7.95]
[1693917979331,144.671,19.635,19.62,7.95]
[1693917979916,170.22639741,19.635,19.618,7.951]
[1693917980341,33.623,19.63,19.618,7.951]
[1693917980523,7.948,19.626,19.618,7.951]
[1693917980926,62.949,19.625,19.618,7.951]
[1693917981432,62.949,19.625,19.616,7.952]
[1693917981835,62.949,19.625,19.613,7.953]
[1693917982040,119.037,19.625,19.613,7.953]
[1693917982424,119.037,19.625,19.611,7.954]
[1693917985140,64.037,19.625,19.611,7.954]
[1693917985836,64.037,19.625,19.612,1.4646816]
[1693917986021,64.037,19.625,19.614,7.953]
[1693917987025,7.95,19.622,19.614,7.953]
[1693917987249,55.0,19.621,19.614,7.953]
[1693917989827,62.95,19.621,19.614,7.953]
[1693917990026,62.95,19.621,19.612,7.954]
[1693917990424,62.95,19.621,19.605,56.105]
[1693917990628,62.95,19.621,19.606,2.59790701]
[1693917991427,162.6301,19.621,19.606,2.59790701]
[1693917992248,162.6301,19.621,19.611,7.954]
[1693917994344,99.6801,19.621,19.611,33.653]
[1693917994855,56.088,19.625,19.611,33.653]
[1693917995435,56.088,19.625,19.612,1.49729303]
[1693917995631,64.037,19.625,19.615,7.952]
[1693917995943,132.927,19.64,19.616,2.16859196]
[1693917996144,7.946,19.632,19.622,7.95]
[1693917996843,7.946,19.632,19.62,7.95]
[1693917997046,63.966,19.632,19.62,7.95]
[1693917999052,55.0,19.631,19.62,7.95]
[1693917999347,62.946,19.631,19.62,7.95]
[1693918002648,55.0,19.631,19.62,7.95]
[1693918002848,62.946,19.631,19.62,7.95]
[1693918003552,55.0,19.631,19.62,39.55]
[1693918003760,56.02,19.632,19.62,39.55]
[1693918003952,44.1295581,19.647,19.62,39.55]
[1693918003953,7.939,19.649,19.621,322.30639068]
[1693918004160,7.939,19.649,19.63,31.6]
[1693918004345,7.939,19.649,19.635,89.631]
[1693918004657,7.939,19.649,19.635,33.611]
[1693918004857,7.939,19.649,19.636,1.68314241]
[1693918005039,23.35970371,19.649,19.638,7.943]
[1693918005247,23.35970371,19.649,19.631,76.031]
[1693918005248,109.302,19.649,19.631,25.672]
[1693918005545,33.598,19.644,19.628,25.677]
[1693918006045,7.943,19.639,19.631,7.946]
[1693918006451,55.0,19.638,19.631,7.946]
[1693918007153,110.0,19.638,19.631,7.946]
[1693918007358,117.943,19.638,19.631,7.946]
[1693918008654,110.0,19.638,19.631,7.946]
[1693918011951,117.943,19.638,19.631,7.946]
[1693918012646,117.943,19.638,19.629,7.947]
[1693918015661,110.0,19.638,19.629,7.947]
[1693918016356,117.943,19.638,19.629,7.947]
[1693918016568,110.0,19.638,19.629,7.947]
[1693918017556,7.944,19.637,19.624,25.682]
[1693918017860,55.0,19.636,19.627,7.948]
[1693918018062,62.944,19.636,19.627,7.948]
[1693918018650,62.944,19.636,19.626,7.948]
[1693918018854,20.0,19.635,19.624,7.949]
[1693918019149,7.946,19.632,19.624,7.949]
[1693918019561,55.0,19.631,19.624,7.949]
[1693918019860,62.946,19.631,19.624,7.949]
[1693918020260,55.0,19.631,19.624,7.949]
[1693918020460,55.0,19.632,19.624,7.949]
[1693918020667,55.0,19.631,19.624,7.949]
[1693918021249,62.946,19.631,19.622,7.95]
[1693918021453,55.0,19.63,19.622,7.95]
[1693918026466,62.947,19.63,19.622,7.95]
[1693918026769,55.0,19.63,19.622,7.95]
[1693918031873,41.96530796,19.638,19.623,20.0]
[1693918032070,26.62127128,19.638,19.627,89.669]
[1693918032374,55.0,19.639,19.632,89.646]
[1693918032574,7.939,19.648,19.633,22.41606236]
[1693918032758,107.3214,19.648,19.637,7.943]
[1693918033066,99.3824,19.648,19.637,7.943]
[1693918033262,107.3214,19.648,19.637,7.943]
[1693918033469,99.3824,19.648,19.637,7.943]
[1693918034061,99.3824,19.648,19.64,31.6]
[1693918034260,492.699,19.665,19.64,31.6]
[1693918034565,99.3824,19.658,19.644,89.593]
[1693918034768,99.3824,19.658,19.645,20.0]
[1693918034962,107.3174,19.658,19.648,7.939]
[1693918035375,107.3174,19.658,19.646,7.94]
[1693918035674,7.937,19.653,19.643,7.941]
[1693918036577,7.938,19.651,19.643,7.941]
[1693918036774,55.0,19.65,19.643,7.941]
[1693918037365,62.938,19.65,19.643,7.941]
[1693918038177,62.938,19.65,19.641,7.942]
[1693918038472,7.938,19.652,19.643,7.941]
[1693918039660,63.954,19.652,19.643,7.941]
[1693918039877,55.0,19.651,19.643,7.941]
[1693918040071,62.938,19.651,19.637,25.665]
[1693918040477,62.938,19.651,19.638,1.72249682]
[1693918040663,62.938,19.651,19.641,7.942]
[1693918042577,55.0,19.651,19.641,7.942]
[1693918043583,7.938,19.651,19.641,7.942]
[1693918044367,56.016,19.652,19.641,7.942]
[1693918044988,55.0,19.651,19.641,7.942]
[1693918046785,7.939,19.65,19.641,7.942]
[1693918047083,55.0,19.649,19.641,7.942]
[1693918049679,31.6,19.67,19.641,109.26]
[1693918049982,26.59199388,19.661,19.646,89.583]
[1693918050296,94.756,19.657,19.646,89.583]
[1693918052390,55.0,19.656,19.646,89.583]
[1693918054179,105.6117,19.66,19.646,89.583]
[1693918054381,101.296,19.659,19.652,7.937]
[1693918055795,55.0,19.658,19.652,7.937]
[1693918056801,101.296,19.659,19.652,7.937]
[1693918056991,100.5525,19.663,19.652,7.937]
[1693918058182,55.0,19.662,19.652,7.937]
[1693918058796,132.1525,19.663,19.652,7.937]
[1693918058992,124.2195,19.663,19.652,7.937]
[1693918060002,55.0,19.662,19.652,7.937]
[1693918060387,52.5,19.662,19.652,7.937]
[1693918061989,31.6,19.663,19.652,7.937]
[1693918062186,31.6,19.663,19.656,7.936]
[1693918062385,55.0,19.662,19.656,7.936]
[1693918063397,62.934,19.662,19.654,7.937]
[1693918065799,62.934,19.662,19.65,31.6]
[1693918066803,62.934,19.662,19.64,57.261]
[1693918066804,144.43439741,19.662,19.64,57.261]
[1693918067093,7.936,19.656,19.645,2.11843871]
[1693918067305,7.936,19.656,19.645,30.05843871]
[1693918067601,25.637,19.659,19.645,27.94]
[1693918067602,55.0,19.655,19.645,27.94]
[1693918067806,95.0893,19.658,19.645,27.94]
[1693918067993,67.29910441,19.663,19.645,27.94]
[1693918067994,26.58220014,19.663,19.646,2.21534859]
[1693918068188,25.55539741,19.668,19.651,89.561]
[1693918068383,20.0,19.667,19.652,2.21534859]
[1693918068589,39.788187,19.663,19.656,7.936]
[1693918070904,55.0,19.662,19.656,7.936]
[1693918071106,55.0,19.662,19.654,7.937]
[1693918071292,55.0,19.662,19.655,27.936]
[1693918073396,55.0,19.662,19.65,7.938]
[1693918073712,33.568,19.661,19.646,25.653]
[1693918073886,33.568,19.661,19.642,56.0]
[1693918073887,55.0,19.66,19.648,7.939]
[1693918074203,62.935,19.66,19.648,7.939]
[1693918075004,104.1254,19.659,19.648,7.939]
[1693918075212,55.0,19.658,19.648,7.939]
[1693918075405,7.936,19.657,19.648,7.939]
[1693918075588,55.0,19.656,19.648,7.939]
[1693918076402,111.002,19.656,19.648,7.939]
[1693918082710,118.938,19.656,19.648,7.939]
[1693918083204,111.002,19.656,19.648,7.939]
[1693918086511,118.938,19.656,19.648,7.939]
[1693918086709,118.938,19.656,19.646,7.94]
[1693918091216,63.938,19.656,19.646,7.94]
[1693918091403,56.002,19.656,19.646,63.931]
[1693918091602,96.1904,19.659,19.647,1.91135159]
[1693918091806,96.1904,19.659,19.65,7.938]
[1693918092004,104.1254,19.659,19.65,7.938]
[1693918092209,7.935,19.659,19.649,7.939]
[1693918092511,34.519376,19.659,19.649,7.939]
[1693918092703,7.936,19.657,19.643,55.999]
[1693918092908,62.936,19.656,19.648,7.939]
[1693918093108,62.936,19.656,19.645,25.654]
[1693918093109,62.936,19.656,19.649,7.939]
[1693918093607,62.936,19.656,19.645,25.654]
[1693918093608,55.0,19.656,19.647,7.939]
[1693918093806,55.0,19.657,19.647,7.939]
[1693918095208,7.936,19.656,19.647,7.939]
[1693918095407,55.0,19.655,19.647,7.939]
[1693918097514,98.0481,19.658,19.647,7.939]
[1693918098819,55.0,19.657,19.647,7.939]
[1693918099327,62.936,19.657,19.647,7.939]
[1693918102005,7.937,19.655,19.647,7.939]
[1693918102205,55.0,19.654,19.647,7.939]
[1693918102605,62.937,19.654,19.645,7.94]
[1693918102807,62.937,19.654,19.638,287.62004173]
[1693918102808,1.02321606,19.653,19.642,7.941]
[1693918103007,7.938,19.65,19.642,7.941]
[1693918103201,7.938,19.652,19.642,7.941]
[1693918103404,55.0,19.651,19.642,7.941]
[1693918103608,110.0,19.651,19.642,7.941]